fUSD/lending_fUSD_20250107
["ID","MTS","AMOUNT","RATE_DAILY","PERIOD"]
[348022283,1736268661684,-500.0,0.00010142,2]
[348022284,1736268661694,-609.14,0.00010142,2]
[348022285,1736268661703,-853.91,0.00010142,2]
[348022286,1736268661712,-500.0,0.00010142,2]
[348022287,1736268661722,-500.0,0.00010142,2]
[348022288,1736268661732,-1230.46,0.00010142,2]
[348022289,1736268661742,-553.12,0.00010142,2]
[348022290,1736268661753,-863.2,0.00010142,2]
[348022291,1736268661763,-531.05,0.00010142,2]
[348022292,1736268661773,-500.0,0.00010142,2]
[348022293,1736268661783,-500.0,0.00010142,2]
[348022294,1736268661793,-500.0,0.00010142,2]
[348022295,1736268661803,-773.27,0.00010142,2]
[348022296,1736268661813,-831.05,0.00010142,2]
[348022297,1736268661823,-2392.33,0.00010142,2]
[348022298,1736268661833,-514.77,0.00010142,2]
[348022299,1736268661842,-912.02,0.00010142,2]
[348022300,1736268661852,-1029.27,0.00010142,2]
[348022301,1736268661862,-1494.48,0.00010142,2]
[348022302,1736268661871,-500.0,0.00010142,2]
[348022303,1736268661880,-500.0,0.00010142,2]
[348022304,1736268661890,-2127.93,0.00010142,2]
[348022305,1736268661899,-1004.88,0.00010142,2]
[348022306,1736268661908,-858.75,0.00010142,2]
[348022307,1736268661918,-1358.1,0.00010142,2]
[348022308,1736268661927,-2342.11,0.00010142,2]
[348022309,1736268661936,-539.24,0.00010142,2]
[348022310,1736268661946,-609.78,0.00010142,2]
[348022311,1736268661956,-1333.64,0.00010142,2]
[348022312,1736268661965,-2822.03,0.00010142,2]
[348022313,1736268661975,-602.54,0.00010142,2]
[348022314,1736268661986,-1190.44,0.00010142,2]
[348022315,1736268661995,-1051.54,0.00010142,2]
[348022316,1736268662005,-500.0,0.00010142,2]
[348022317,1736268662015,-793.26,0.00010142,2]
[348022318,1736268662025,-1546.56,0.00010142,2]
[348022319,1736268662034,-722.34,0.00010142,2]
[348022320,1736268662043,-500.0,0.00010142,2]
[348022321,1736268662053,-1149.51,0.00010142,2]
[348022322,1736268662062,-1887.44,0.00010142,2]
[348022323,1736268662071,-500.0,0.00010142,2]
[348022324,1736268662081,-865.45,0.00010142,2]
[348022325,1736268662091,-807.88,0.00010142,2]
[348022326,1736268662101,-500.0,0.00010142,2]
[348022327,1736268662110,-910.92,0.00010142,2]
[348022328,1736268662120,-500.0,0.00010142,2]
[348022329,1736268662130,-500.0,0.00010142,2]
[348022330,1736268662139,-500.0,0.00010142,2]
[348022331,1736268662149,-1777.29,0.00010142,2]
[348022332,1736268662158,-500.0,0.00010142,2]
[348022333,1736268662167,-706.99,0.00010142,2]
[348022334,1736268662177,-5860.4,0.00010142,2]
[348022335,1736268662187,-757.84,0.00010142,2]
[348022336,1736268662196,-500.0,0.00010142,2]
[348022337,1736268662205,-500.0,0.00010142,2]
[348022338,1736268662215,-1001.12,0.00010142,2]
[348022339,1736268662225,-218.463418,0.00010142,2]
[348022340,1736268662236,-2561.02,0.00010142,2]
[348022341,1736268662245,-500.0,0.00010142,2]
[348022342,1736268662255,-1084.58,0.00010142,2]
[348022343,1736268662264,-4263.82,0.00010142,2]
[348022344,1736268662274,-500.0,0.00010142,2]
[348022345,1736268662283,-1460.17,0.00010142,2]
[348022346,1736268662293,-500.0,0.00010142,2]
[348022347,1736268662301,-233.574732,0.00010142,2]
[348022348,1736268662311,-1616.76,0.00010142,2]
[348022349,1736268662321,-500.0,0.00010142,2]
[348022350,1736268662331,-2923.63,0.00010142,2]
[348022351,1736268662340,-165.218112,0.00010142,2]
[348022352,1736268662350,-1003.09,0.00010142,2]
[348022353,1736268662359,-942.56,0.00010142,2]
[348022354,1736268662369,-500.0,0.00010142,2]
[348022355,1736268662379,-592.62,0.00010142,2]
[348022356,1736268662390,-500.0,0.00010142,2]
[348022357,1736268662400,-2206.35,0.00010142,2]
[348022358,1736268662410,-4714.17,0.00010142,2]
[348022359,1736268662420,-4374.14,0.00010142,2]
[348022360,1736268662429,-1217.32,0.00010142,2]
[348022361,1736268662438,-500.0,0.00010142,2]
[348022362,1736268662446,-500.0,0.00010142,2]
[348022363,1736268662456,-779.65,0.00010142,2]
[348022364,1736268662466,-544.8,0.00010142,2]
[348022365,1736268662476,-2901.84,0.00010142,2]
[348022366,1736268662487,-794.55,0.00010142,2]
[348022367,1736268662499,-2312.21,0.00010142,2]
[348022368,1736268662509,-884.2,0.00010142,2]
[348022369,1736268662524,-500.0,0.00010142,2]
[348022370,1736268662533,-604.36,0.00010142,2]
[348022371,1736268662544,-1059.63,0.00010142,2]
[348022372,1736268662559,-779.93,0.00010142,2]
[348022373,1736268662568,-500.0,0.00010142,2]
[348022374,1736268662578,-500.0,0.00010142,2]
[348022375,1736268662588,-500.0,0.00010142,2]
[348022376,1736268662598,-1153.17,0.00010142,2]
[348022377,1736268662608,-559.47,0.00010142,2]
[348022378,1736268662618,-1870.96,0.00010142,2]
[348022379,1736268662630,-782.74,0.00010142,2]
[348022380,1736268662640,-500.0,0.00010142,2]
[348022381,1736268662650,-595.86,0.00010142,2]
[348022382,1736268662660,-251.94,0.00010142,2]
[348022383,1736268662670,-1083.61,0.00010142,2]
[348022384,1736268662680,-500.0,0.00010142,2]
[348022385,1736268662690,-500.0,0.00010142,2]
[348022386,1736268662700,-1115.91,0.00010142,2]
[348022387,1736268662710,-715.2,0.00010142,2]
[348022388,1736268662720,-818.1,0.00010142,2]
[348022389,1736268662734,-500.0,0.00010142,2]
[348022390,1736268662745,-500.0,0.00010142,2]
[348022391,1736268662757,-500.0,0.00010143,2]
[348022392,1736268662767,-500.0,0.00010143,2]
[348022393,1736268662777,-500.0,0.00010143,2]
[348022394,1736268662787,-500.0,0.00010143,2]
[348022395,1736268662797,-500.0,0.00010143,2]
[348022396,1736268662808,-500.0,0.00010143,2]
[348022397,1736268662817,-500.0,0.00010143,2]
[348022398,1736268662828,-533.91,0.00010143,2]
[348022399,1736268662837,-500.0,0.00010143,2]
[348022400,1736268662846,-500.0,0.00010143,2]
[348022401,1736268662856,-500.0,0.00010143,2]
[348022402,1736268662865,-500.0,0.00010143,2]
[348022403,1736268662875,-500.0,0.00010143,2]
[348022404,1736268662884,-500.0,0.00010143,2]
[348022405,1736268662894,-500.0,0.00010143,2]
[348022406,1736268662903,-500.0,0.00010143,2]
[348022407,1736268662913,-500.0,0.00010143,2]
[348022408,1736268662922,-500.0,0.00010143,2]
[348022409,1736268662932,-500.0,0.00010143,2]
[348022410,1736268662941,-500.0,0.00010143,2]
[348022411,1736268662950,-500.0,0.00010143,2]
[348022412,1736268662959,-538.96,0.00010143,2]
[348022413,1736268662968,-198.55,0.00010143,2]
[348022414,1736268662978,-500.0,0.00010143,2]
[348022415,1736268662991,-500.0,0.00010143,2]
[348022416,1736268663001,-500.0,0.00010143,2]
[348022417,1736268663011,-500.0,0.00010143,2]
[348022418,1736268663021,-500.0,0.00010143,2]
[348022419,1736268663031,-500.0,0.00010143,2]
[348022420,1736268663041,-845.74,0.00010143,2]
[348022421,1736268663050,-500.0,0.00010143,2]
[348022422,1736268663060,-500.0,0.00010143,2]
[348022423,1736268663071,-500.0,0.00010143,2]
[348022424,1736268663081,-500.0,0.00010143,2]
[348022425,1736268663091,-592.86,0.00010143,2]
[348022426,1736268663101,-500.0,0.00010143,2]
[348022427,1736268663112,-600.81,0.00010143,2]
[348022428,1736268663122,-500.0,0.00010143,2]
[348022429,1736268663132,-500.0,0.00010143,2]
[348022430,1736268663141,-519.72,0.00010143,2]
[348022431,1736268663151,-500.0,0.00010143,2]
[348022432,1736268663160,-819.07,0.00010143,2]
[348022433,1736268663170,-500.0,0.00010143,2]
[348022434,1736268663182,-518.34,0.00010143,2]
[348022435,1736268663192,-616.88,0.00010143,2]
[348022436,1736268663202,-500.0,0.00010143,2]
[348022437,1736268663211,-500.0,0.00010143,2]
[348022438,1736268663221,-500.0,0.00010143,2]
[348022439,1736268663233,-500.0,0.00010143,2]
[348022440,1736268663243,-500.0,0.00010143,2]
[348022441,1736268663253,-500.0,0.00010143,2]
[348022442,1736268663263,-500.0,0.00010143,2]
[348022443,1736268663272,-500.0,0.00010143,2]
[348022444,1736268663282,-500.0,0.00010143,2]
[348022445,1736268663292,-500.0,0.00010143,2]
[348022446,1736268663302,-500.0,0.00010143,2]
[348022447,1736268663311,-500.0,0.00010143,2]
[348022448,1736268663320,-500.0,0.00010143,2]
[348022449,1736268663330,-870.58,0.00010143,2]
[348022450,1736268663340,-687.56,0.00010143,2]
[348022451,1736268663351,-500.0,0.00010143,2]
[348022452,1736268663361,-791.82,0.00010143,2]
[348022453,1736268663371,-500.0,0.00010143,2]
[348022454,1736268663381,-500.0,0.00010143,2]
[348022455,1736268663391,-500.0,0.00010143,2]
[348022456,1736268663401,-500.0,0.00010143,2]
[348022457,1736268663411,-500.0,0.00010143,2]
[348022458,1736268663421,-500.0,0.00010143,2]
[348022459,1736268663432,-927.26,0.00010143,2]
[348022460,1736268663443,-558.34,0.00010143,2]
[348022461,1736268663453,-500.0,0.00010143,2]
[348022462,1736268663463,-500.0,0.00010143,2]
[348022463,1736268663474,-655.3,0.00010143,2]
[348022464,1736268663487,-557.31,0.00010143,2]
[348022465,1736268663496,-656.36,0.00010143,2]
[348022466,1736268663507,-500.0,0.00010143,2]
[348022467,1736268663517,-918.28,0.00010143,2]
[348022468,1736268663527,-582.18,0.00010143,2]
[348022469,1736268663538,-500.0,0.00010143,2]
[348022470,1736268663551,-685.99,0.00010143,2]
[348022471,1736268663563,-500.0,0.00010143,2]
[348022472,1736268663574,-304.27777271,0.00010143,2]
[348022473,1736268663584,-583.44,0.00010143,2]
[348022474,1736268663596,-500.0,0.00010143,2]
[348022475,1736268663606,-641.46,0.00010143,2]
[348022476,1736268663616,-612.42,0.00010143,2]
[348022477,1736268663627,-500.0,0.00010143,2]
[348022478,1736268663638,-520.7,0.00010143,2]
[348022479,1736268663648,-500.0,0.00010143,2]
[348022480,1736268663658,-500.0,0.00010143,2]
[348022481,1736268663667,-500.0,0.00010143,2]
[348022482,1736268663678,-500.0,0.00010143,2]
[348022483,1736268663688,-505.14,0.00010143,2]
[348022484,1736268663698,-500.0,0.00010143,2]
[348022485,1736268663709,-500.0,0.00010143,2]
[348022486,1736268663720,-735.13,0.00010143,2]
[348022487,1736268663732,-500.0,0.00010143,2]
[348022488,1736268663742,-512.9,0.00010143,2]
[348022489,1736268663753,-500.0,0.00010143,2]
[348022490,1736268663764,-500.0,0.00010143,2]
[348022491,1736268663774,-500.0,0.00010143,2]
[348022492,1736268663785,-500.0,0.00010143,2]
[348022493,1736268663795,-500.0,0.00010143,2]
[348022494,1736268663805,-500.0,0.00010143,2]
[348022495,1736268663816,-597.15,0.00010143,2]
[348022496,1736268663826,-921.38,0.00010143,2]
[348022497,1736268663836,-500.0,0.00010143,2]
[348022498,1736268663847,-500.0,0.00010143,2]
[348022499,1736268663857,-500.0,0.00010143,2]
[348022500,1736268663866,-851.41,0.00010143,2]
[348022501,1736268663876,-500.0,0.00010143,2]
[348022502,1736268663886,-500.0,0.00010143,2]
[348022503,1736268663896,-500.0,0.00010143,2]
[348022504,1736268663907,-500.0,0.00010143,2]
[348022505,1736268663917,-500.0,0.00010143,2]
[348022506,1736268663926,-366.94533332,0.00010143,2]
[348022507,1736268663936,-500.0,0.00010143,2]
[348022508,1736268663946,-500.0,0.00010143,2]
[348022509,1736268663956,-500.0,0.00010143,2]
[348022510,1736268663966,-538.02,0.00010143,2]
[348022511,1736268663976,-526.88,0.00010143,2]
[348022512,1736268663988,-969.14,0.00010143,2]
[348022513,1736268663997,-500.0,0.00010143,2]
[348022514,1736268664008,-850.4,0.00010143,2]
[348022515,1736268664018,-500.0,0.00010143,2]
[348022516,1736268664027,-500.0,0.00010143,2]
[348022517,1736268664037,-500.0,0.00010143,2]
[348022518,1736268664046,-1025.87,0.00010143,2]
[348022519,1736268664056,-500.0,0.00010143,2]
[348022520,1736268664066,-877.47,0.00010143,2]
[348022521,1736268664076,-500.0,0.00010143,2]
[348022522,1736268664086,-500.0,0.00010143,2]
[348022523,1736268664096,-615.53,0.00010143,2]
[348022524,1736268664105,-500.0,0.00010143,2]
[348022525,1736268664115,-500.0,0.00010143,2]
[348022526,1736268664125,-500.0,0.00010143,2]
[348022527,1736268664134,-590.64,0.00010143,2]
[348022528,1736268664143,-500.0,0.00010143,2]
[348022529,1736268664153,-500.0,0.00010143,2]
[348022530,1736268664163,-585.59,0.00010143,2]
[348022531,1736268664173,-209.22533847,0.00010143,2]
[348022532,1736268664183,-500.0,0.00010143,2]
[348022533,1736268664193,-646.69,0.00010143,2]
[348022534,1736268664203,-500.0,0.00010143,2]
[348022535,1736268664213,-500.0,0.00010143,2]
[348022536,1736268664223,-1000.0,0.00010274,2]
[348022537,1736268664235,-500.0,0.00010407,2]
[348022538,1736268664245,-500.0,0.00010407,2]
[348022539,1736268664255,-500.9,0.00010407,2]
[348022540,1736268664264,-3599.28,0.00010408,2]
[348022541,1736268664274,-3449.31,0.00010408,2]
[348022542,1736268664284,-1127.87,0.00010408,2]
[348022543,1736268664294,-1080.32,0.00010408,2]
[348022544,1736268664303,-2140.99,0.00010408,2]
[348022545,1736268664312,-1743.43,0.00010408,2]
[348022546,1736268664321,-500.0,0.00010408,2]
[348022547,1736268664331,-4639.5,0.00010408,2]
[348022548,1736268664341,-3610.9,0.00010408,2]
[348022549,1736268664350,-734.32,0.00010408,2]
[348022550,1736268664361,-500.0,0.00010408,2]
[348022551,1736268664371,-500.0,0.00010408,2]
[348022552,1736268664381,-612.11,0.00010408,2]
[348022553,1736268664390,-500.0,0.00010408,2]
[348022554,1736268664401,-1544.38,0.00010408,2]
[348022555,1736268664410,-850.81,0.00010408,2]
[348022556,1736268664420,-500.0,0.00010408,2]
[348022557,1736268664430,-500.0,0.00010408,2]
[348022558,1736268664440,-662.0,0.00010408,2]
[348022559,1736268664449,-747.67,0.00010408,2]
[348022560,1736268664460,-500.0,0.00010408,2]
[348022561,1736268664469,-772.19,0.00010408,2]
[348022562,1736268664480,-588.87,0.00010408,2]
[348022563,1736268664491,-2961.16,0.00010408,2]
[348022564,1736268664501,-590.95,0.00010408,2]
[348022565,1736268664512,-774.32,0.00010408,2]
[348022566,1736268664522,-655.07,0.00010408,2]
[348022567,1736268664532,-500.0,0.00010408,2]
[348022568,1736268664543,-506.74,0.00010408,2]
[348022569,1736268664555,-958.33,0.00010408,2]
[348022570,1736268664565,-500.0,0.00010408,2]
[348022571,1736268664575,-956.06,0.00010408,2]
[348022572,1736268664586,-503.25,0.00010408,2]
[348022573,1736268664596,-939.96,0.00010408,2]
[348022574,1736268664606,-500.0,0.00010408,2]
[348022575,1736268664616,-1092.85,0.00010408,2]
[348022576,1736268664626,-1214.95,0.00010408,2]
[348022577,1736268664636,-500.0,0.00010408,2]
[348022578,1736268664645,-500.0,0.00010408,2]
[348022579,1736268664655,-500.0,0.00010408,2]
[348022580,1736268664666,-623.76,0.00010408,2]
[348022581,1736268664676,-1114.33,0.00010408,2]
[348022582,1736268664686,-500.0,0.00010408,2]
[348022583,1736268664697,-679.63,0.00010408,2]
[348022584,1736268664708,-527.31,0.00010408,2]
[348022585,1736268664718,-1307.24,0.00010408,2]
[348022586,1736268664729,-859.28,0.00010408,2]
[348022587,1736268664740,-1688.86,0.00010408,2]
[348022588,1736268664750,-2597.12,0.00010408,2]
[348022589,1736268664760,-917.21,0.00010408,2]
[348022590,1736268664771,-2164.26,0.00010408,2]
[348022591,1736268664781,-1267.48,0.00010408,2]
[348022592,1736268664792,-5884.97,0.00010408,2]
[348022593,1736268664802,-1401.08,0.00010408,2]
[348022594,1736268664812,-1512.74,0.00010408,2]
[348022595,1736268664822,-886.66,0.00010409,2]
[348022596,1736268664832,-2097.97,0.00010409,2]
[348022597,1736268664842,-500.0,0.00010409,2]
[348022598,1736268664853,-1311.27,0.00010409,2]
[348022599,1736268664863,-1111.46,0.00010409,2]
[348022600,1736268664874,-531.84,0.00010409,2]
[348022601,1736268664885,-2273.0,0.00010409,2]
[348022602,1736268664895,-1028.58,0.00010409,2]
[348022603,1736268664905,-1591.44,0.00010409,2]
[348022604,1736268664914,-997.13,0.00010409,2]
[348022605,1736268664925,-2714.28,0.00010409,2]
[348022606,1736268664935,-1972.55,0.00010409,2]
[348022607,1736268664945,-500.0,0.00010415,2]
[348022608,1736268664955,-1321.84,0.00010415,2]
[348022609,1736268664966,-817.02,0.00010415,2]
[348022610,1736268664977,-500.0,0.00010416,2]
[348022611,1736268664988,-556.07,0.00010416,2]
[348022612,1736268664998,-850.62,0.00010416,2]
[348022613,1736268665008,-500.0,0.00010416,2]
[348022614,1736268665018,-500.0,0.00010416,2]
[348022615,1736268665027,-590.0,0.00010416,2]
[348022616,1736268665037,-500.0,0.00010416,2]
[348022617,1736268665046,-733.92,0.00010416,2]
[348022618,1736268665056,-836.91,0.00010416,2]
[348022619,1736268665067,-722.53,0.00010416,2]
[348022620,1736268665076,-500.0,0.00010416,2]
[348022621,1736268665086,-897.94,0.00010416,2]
[348022622,1736268665095,-500.0,0.00010416,2]
[348022623,1736268665105,-500.0,0.00010416,2]
[348022624,1736268665114,-500.0,0.00010416,2]
[348022625,1736268665124,-500.0,0.00010416,2]
[348022626,1736268665135,-500.0,0.00010416,2]
[348022627,1736268665145,-797.59,0.00010416,2]
[348022628,1736268665155,-593.4,0.00010416,2]
[348022629,1736268665165,-500.0,0.00010416,2]
[348022630,1736268665175,-500.0,0.00010416,2]
[348022631,1736268665185,-500.0,0.00010416,2]
[348022632,1736268665195,-910.72,0.00010416,2]
[348022633,1736268665205,-519.37,0.00010416,2]
[348022634,1736268665215,-812.74,0.00010416,2]
[348022635,1736268665225,-500.0,0.00010416,2]
[348022636,1736268665237,-531.28,0.00010416,2]
[348022637,1736268665247,-500.0,0.00010416,2]
[348022638,1736268665257,-528.34,0.00010416,2]
[348022639,1736268665267,-1325.98,0.00010416,2]
[348022640,1736268665278,-826.1,0.00010416,2]
[348022641,1736268665289,-500.0,0.00010416,2]
[348022642,1736268665299,-500.0,0.00010416,2]
[348022643,1736268665309,-582.94,0.00010416,2]
[348022644,1736268665319,-960.33,0.00010416,2]
[348022645,1736268665330,-749.9,0.00010416,2]
[348022646,1736268665341,-500.0,0.00010416,2]
[348022647,1736268665351,-824.34,0.00010416,2]
[348022648,1736268665360,-500.0,0.00010416,2]
[348022649,1736268665371,-1090.09,0.00010416,2]
[348022650,1736268665381,-557.29,0.00010416,2]
[348022651,1736268665391,-663.62,0.00010416,2]
[348022652,1736268665402,-557.55,0.00010416,2]
[348022653,1736268665413,-500.0,0.00010416,2]
[348022654,1736268665423,-500.0,0.00010416,2]
[348022655,1736268665434,-500.0,0.00010416,2]
[348022656,1736268665444,-1547.89,0.00010416,2]
[348022657,1736268665453,-500.0,0.00010416,2]
[348022658,1736268665462,-913.99,0.00010416,2]
[348022659,1736268665472,-500.0,0.00010416,2]
[348022660,1736268665485,-500.0,0.00010416,2]
[348022661,1736268665495,-582.8,0.00010416,2]
[348022662,1736268665505,-500.0,0.00010416,2]
[348022663,1736268665515,-735.69,0.00010416,2]
[348022664,1736268665525,-500.0,0.00010416,2]
[348022665,1736268665535,-548.74,0.00010416,2]
[348022666,1736268665545,-567.82,0.00010416,2]
[348022667,1736268665559,-500.0,0.00010416,2]
[348022668,1736268665570,-609.14,0.00010416,2]
[348022669,1736268665581,-853.91,0.00010416,2]
[348022670,1736268665592,-500.0,0.00010416,2]
[348022671,1736268665603,-500.0,0.00010416,2]
[348022672,1736268665614,-1230.46,0.00010416,2]
[348022673,1736268665626,-553.12,0.00010416,2]
[348022674,1736268665637,-863.2,0.00010416,2]
[348022675,1736268665648,-531.05,0.00010416,2]
[348022676,1736268665660,-500.0,0.00010416,2]
[348022677,1736268665670,-500.0,0.00010416,2]
[348022678,1736268665680,-500.0,0.00010416,2]
[348022679,1736268665690,-773.27,0.00010416,2]
[348022680,1736268665700,-831.05,0.00010416,2]
[348022681,1736268665711,-2392.33,0.00010416,2]
[348022682,1736268665722,-514.77,0.00010416,2]
[348022683,1736268665734,-912.02,0.00010416,2]
[348022684,1736268665745,-1029.27,0.00010416,2]
[348022685,1736268665756,-1494.48,0.00010416,2]
[348022686,1736268665768,-500.0,0.00010416,2]
[348022687,1736268665778,-500.0,0.00010416,2]
[348022688,1736268665789,-1004.88,0.00010416,2]
[348022689,1736268665799,-2127.93,0.00010416,2]
[348022690,1736268665809,-858.75,0.00010416,2]
[348022691,1736268665819,-1358.1,0.00010416,2]
[348022692,1736268665829,-2342.11,0.00010416,2]
[348022693,1736268665838,-539.24,0.00010416,2]
[348022694,1736268665849,-609.78,0.00010416,2]
[348022695,1736268665859,-1333.64,0.00010416,2]
[348022696,1736268665869,-2822.03,0.00010416,2]
[348022697,1736268665879,-602.54,0.00010416,2]
[348022698,1736268665889,-1190.44,0.00010416,2]
[348022699,1736268665899,-500.0,0.00010416,2]
[348022700,1736268665909,-1051.54,0.00010416,2]
[348022701,1736268665921,-793.26,0.00010416,2]
[348022702,1736268665931,-1546.56,0.00010416,2]
[348022703,1736268665942,-722.34,0.00010416,2]
[348022704,1736268665953,-459.21,0.00010416,2]
[348022705,1736268665963,-1149.51,0.00010416,2]
[348022706,1736268665973,-1887.44,0.00010416,2]
[348022707,1736268665986,-500.0,0.00010416,2]
[348022708,1736268665996,-865.45,0.00010416,2]
[348022709,1736268666006,-807.88,0.00010416,2]
[348022710,1736268666016,-500.0,0.00010416,2]
[348022711,1736268666026,-910.92,0.00010416,2]
[348022712,1736268666035,-500.0,0.00010416,2]
[348022713,1736268666046,-500.0,0.00010416,2]
[348022714,1736268666057,-500.0,0.00010416,2]
[348022715,1736268666067,-1777.29,0.00010416,2]
[348022716,1736268666077,-500.0,0.00010416,2]
[348022717,1736268666088,-706.99,0.00010416,2]
[348022718,1736268666098,-5860.4,0.00010416,2]
[348022719,1736268666108,-500.0,0.00010416,2]
[348022720,1736268666118,-757.84,0.00010416,2]
[348022721,1736268666128,-500.0,0.00010416,2]
[348022722,1736268666138,-1001.12,0.00010416,2]
[348022723,1736268666147,-218.463418,0.00010416,2]
[348022724,1736268666158,-2561.02,0.00010416,2]
[348022725,1736268666168,-500.0,0.00010416,2]
[348022726,1736268666178,-1084.58,0.00010416,2]
[348022727,1736268666188,-4263.82,0.00010416,2]
[348022728,1736268666199,-500.0,0.00010416,2]
[348022729,1736268666209,-1460.17,0.00010416,2]
[348022730,1736268666219,-500.0,0.00010416,2]
[348022731,1736268666229,-233.574732,0.00010416,2]
[348022732,1736268666242,-1616.76,0.00010416,2]
[348022733,1736268666252,-500.0,0.00010416,2]
[348022734,1736268666262,-2923.63,0.00010416,2]
[348022735,1736268666272,-1003.09,0.00010416,2]
[348022736,1736268666282,-942.56,0.00010416,2]
[348022737,1736268666292,-500.0,0.00010416,2]
[348022738,1736268666302,-592.62,0.00010416,2]
[348022739,1736268666312,-500.0,0.00010416,2]
[348022740,1736268666322,-2206.35,0.00010416,2]
[348022741,1736268666332,-1217.32,0.00010416,2]
[348022742,1736268666342,-500.0,0.00010416,2]
[348022743,1736268666352,-4374.14,0.00010416,2]
[348022744,1736268666362,-4714.17,0.00010416,2]
[348022745,1736268666372,-500.0,0.00010416,2]
[348022746,1736268666382,-779.65,0.00010416,2]
[348022747,1736268666392,-544.8,0.00010416,2]
[348022748,1736268666402,-2901.84,0.00010416,2]
[348022749,1736268666412,-794.55,0.00010416,2]
[348022750,1736268666422,-884.2,0.00010416,2]
[348022751,1736268666432,-2312.21,0.00010416,2]
[348022752,1736268666442,-500.0,0.00010416,2]
[348022753,1736268666452,-604.36,0.00010416,2]
[348022754,1736268666462,-1059.63,0.00010416,2]
[348022755,1736268666471,-779.93,0.00010416,2]
[348022756,1736268666484,-500.0,0.00010416,2]
[348022757,1736268666495,-500.0,0.00010416,2]
[348022758,1736268666505,-500.0,0.00010416,2]
[348022759,1736268666515,-1153.17,0.00010416,2]
[348022760,1736268666525,-1870.96,0.00010416,2]
[348022761,1736268666534,-559.47,0.00010416,2]
[348022762,1736268666546,-782.74,0.00010416,2]
[348022763,1736268666557,-500.0,0.00010416,2]
[348022764,1736268666567,-595.86,0.00010416,2]
[348022765,1736268666578,-1083.61,0.00010416,2]
[348022766,1736268666590,-500.0,0.00010416,2]
[348022767,1736268666601,-457.22110185,0.00010416,2]
[348022768,1736268666611,-1115.91,0.00010416,2]
[348022769,1736268666624,-715.2,0.00010416,2]
[348022770,1736268666635,-818.1,0.00010416,2]
[348022771,1736268666645,-500.0,0.00010416,2]
[348022772,1736268666656,-500.0,0.00010416,2]
[348022773,1736268666888,-500.0,0.00010417,2]
[348022774,1736268666898,-603.64,0.00010417,2]
[348022775,1736268666907,-500.0,0.00010417,2]
[348022776,1736268666917,-500.0,0.00010417,2]
[348022777,1736268666927,-500.0,0.00010417,2]
[348022778,1736268666936,-500.0,0.00010417,2]
[348022779,1736268666946,-500.0,0.00010417,2]
[348022780,1736268666955,-533.91,0.00010417,2]
[348022781,1736268666964,-500.0,0.00010417,2]
[348022782,1736268666973,-500.0,0.00010417,2]